bitfinex-derivatives/quotes_SOLF0:USTF0_20250706
["timestamp","ask_amount","ask_price","bid_price","bid_amount"]
[1751791062548,6.7854,147.34,147.31,203.92363489]
[1751791062751,13.30669968,147.33,147.31,203.92363489]
[1751791062954,6.7854,147.34,147.31,203.92363489]
[1751791063152,13.30669968,147.33,147.31,203.92363489]
[1751791063349,4.71499074,147.32,147.31,203.92363489]
[1751791070060,4.73774677,147.32,147.31,203.92363489]
[1751791070461,4.73789356,147.32,147.31,203.92363489]
[1751791074264,9.43444507,147.37,147.33,6.7856]
[1751791074465,20.58746072,147.36,147.34,194.76]
[1751791074771,18.32185551,147.35,147.34,194.76]
[1751791074967,13.37123545,147.35,147.34,197.11693489]
[1751791075168,4.73803877,147.35,147.34,197.11693489]
[1751791075470,6.7833,147.39,147.36,6.7844]
[1751791075672,18.31763844,147.38,147.37,194.74]
[1751791076063,18.31764595,147.38,147.37,194.74]
[1751791076261,13.3675744,147.38,147.37,194.74]
[1751791077669,20.1510744,147.38,147.37,194.74]
[1751791078468,11.52078906,147.38,147.37,194.74]
[1751791078671,4.73728906,147.38,147.37,194.74]
[1751791079872,4.73728906,147.38,147.37,197.09693489]
[1751791082264,7.08538382,147.38,147.34,2.35693489]
[1751791082473,2.35693489,147.38,147.35,194.72]
[1751791082869,15.39918317,147.37,147.35,194.72]
[1751791083064,6.7843,147.37,147.35,194.72]
[1751791083269,2.35693489,147.36,147.33,2.35693489]
[1751791083463,6.7853,147.34,147.32,48.39693489]
[1751791083667,6.7853,147.34,147.33,194.7]
[1751791084571,6.7858,147.33,147.32,48.39693489]
[1751791084773,6.7858,147.33,147.32,46.04]
[1751791084974,16.39074507,147.39,147.32,240.74]
[1751791085175,6.7856,147.34,147.32,240.74]
[1751791085975,6.7856,147.34,147.33,194.7]
[1751791086173,11.57830557,147.34,147.33,194.7]
[1751791087175,11.57804611,147.34,147.33,194.7]
[1751791087877,4.79244611,147.34,147.33,198.38308105]
[1751791088078,11.77311861,147.39,147.33,205.16878105]
[1751791088378,18.46046939,147.38,147.33,198.38308105]
[1751791088581,13.4325912,147.37,147.33,198.38308105]
[1751791088774,13.4325912,147.36,147.33,194.7]
[1751791088975,3.68308105,147.38,147.32,3.68308105]
[1751791089179,13.43298164,147.37,147.33,194.94]
[1751791089381,11.57749003,147.36,147.33,194.94]
[1751791089569,6.7847,147.36,147.33,194.94]
[1751791090280,6.7847,147.36,147.32,3.68308105]
[1751791090483,6.7847,147.36,147.33,194.94]
[1751791090685,6.7847,147.36,147.33,201.7257]
[1751791091684,6.7847,147.36,147.33,194.94]
[1751791091885,4.73674282,147.35,147.33,194.94]
[1751791092084,4.73674282,147.34,147.33,194.94]
[1751791095088,6.7846,147.36,147.33,194.94]
[1751791095283,13.48606954,147.35,147.33,194.94]
[1751791095584,6.7846,147.36,147.33,194.94]
[1751791095787,13.49758067,147.35,147.33,194.94]
[1751791095980,6.7849,147.35,147.33,194.94]
[1751791098878,6.7846,147.36,147.33,201.7258]
[1751791099081,4.78569042,147.35,147.33,201.7258]
[1751791099288,6.7846,147.36,147.33,201.7258]
[1751791099490,4.79705178,147.35,147.33,201.7258]
[1751791099788,6.7846,147.36,147.33,201.7258]
[1751791099988,4.79705178,147.35,147.33,201.7258]
[1751791100181,6.7846,147.36,147.33,201.7258]
[1751791100596,11.58217506,147.35,147.33,194.94]
[1751791100886,6.7849,147.35,147.33,194.94]
[1751791101590,6.7853,147.34,147.33,194.94]
[1751791102088,11.58252864,147.34,147.33,194.94]
[1751791102288,11.58279995,147.34,147.33,194.94]
[1751791104592,6.7859,147.33,147.3,10.47018105]
[1751791104794,3.68308105,147.37,147.31,240.94]
[1751791104996,20.77991762,147.36,147.31,240.94]
[1751791105194,6.7858,147.34,147.32,194.88]
[1751791105395,4.79787763,147.33,147.32,194.88]
[1751791105789,11.58367763,147.33,147.32,194.88]
[1751791110398,6.7858,147.33,147.32,194.88]
[1751791110694,11.55342369,147.33,147.32,194.88]
[1751791111096,6.7858,147.33,147.32,194.88]
[1751791111298,4.76813265,147.33,147.32,194.88]
[1751791111499,6.7854,147.34,147.32,194.88]
[1751791111699,8.41708105,147.37,147.33,194.82]
[1751791111995,6.7853,147.34,147.33,194.82]
[1751791112200,18.41137467,147.34,147.31,46.06]
[1751791112390,20.25073507,147.33,147.32,194.9]
[1751791114301,20.24965767,147.33,147.32,194.9]
[1751791115198,11.55332425,147.33,147.32,194.9]
[1751791118804,20.24685082,147.33,147.32,194.86]
[1751791122003,11.55332425,147.33,147.32,194.86]
[1751791122502,4.76712425,147.33,147.32,194.86]
[1751791122703,4.76712425,147.33,147.32,197.21737577]
[1751791123699,4.76712425,147.33,147.32,194.86]
[1751791124101,13.43926276,147.33,147.32,194.86]
[1751791125603,20.22506276,147.33,147.32,194.86]
[1751791128709,6.7864,147.32,147.29,55.26457577]
[1751791129005,4.76712425,147.31,147.3,194.78]
[1751791129204,15.79950011,147.31,147.23,2.4336]
[1751791129404,2.35737577,147.29,147.26,243.43737577]
[1751791129607,4.76712425,147.28,147.27,194.96]
[1751791129804,4.58597577,147.33,147.27,197.31737577]
[1751791129805,6.7875,147.3,147.27,197.31737577]
[1751791130001,4.76681049,147.29,147.27,194.96]
[1751791130207,4.58597577,147.33,147.27,194.96]
[1751791130409,20.72076327,147.32,147.27,201.7482]
[1751791130609,13.43718469,147.31,147.27,201.7482]
[1751791130808,4.7663398,147.3,147.27,201.7482]
[1751791131011,6.7872,147.3,147.29,2.35737577]
[1751791131213,11.55343882,147.3,147.29,2.35737577]
[1751791131910,6.7876,147.29,147.28,2.35737577]
[1751791132106,4.7655419,147.29,147.27,197.31737577]
[1751791132307,2.35737577,147.3,147.27,194.96]
[1751791132509,4.76432781,147.29,147.27,194.96]
[1751791132710,2.35737577,147.3,147.27,194.96]
[1751791133016,6.7883,147.28,147.27,195.06]
[1751791133513,6.7883,147.28,147.27,197.41737577]
[1751791133814,6.7883,147.28,147.27,195.06]
[1751791136017,11.55030593,147.28,147.26,46.12]
[1751791136217,6.7883,147.28,147.27,195.04]
[1751791136412,11.54920407,147.28,147.26,46.12]
[1751791136616,6.7883,147.28,147.27,195.04]
[1751791136816,11.54920289,147.28,147.27,195.04]
[1751791137313,6.7883,147.28,147.27,195.04]
[1751791139117,6.7878,147.29,147.27,195.04]
[1751791141421,6.7878,147.29,147.28,195.02]
[1751791141621,11.52326666,147.29,147.28,195.02]
[1751791143025,4.73546666,147.29,147.28,195.02]
[1751791144025,4.734,147.37,147.31,3.68524004]
[1751791144225,13.33197815,147.36,147.32,195.16]
[1751791144525,4.71358068,147.35,147.32,195.16]
[1751791144719,6.7852,147.35,147.32,201.9462]
[1751791146528,6.7852,147.35,147.32,195.16]
[1751791147519,6.7852,147.35,147.32,201.9462]
[1751791147723,6.7846,147.36,147.32,195.16]
[1751791148025,4.71519843,147.35,147.32,195.16]
[1751791148326,6.7849,147.35,147.32,201.9461]
[1751791149925,6.7856,147.34,147.32,195.16]
[1751791150833,6.7858,147.33,147.32,195.16]
[1751791151328,11.5661504,147.33,147.32,195.16]
[1751791151529,6.7862,147.32,147.3,46.14]
[1751791151729,6.7862,147.32,147.31,195.14]
[1751791151927,11.56673177,147.32,147.31,195.14]
[1751791156834,6.7867,147.31,147.3,46.14]
[1751791157127,11.53651686,147.31,147.3,241.22]
[1751791157329,11.53651686,147.31,147.3,241.24]
[1751791157523,6.7867,147.31,147.3,241.24]
[1751791158031,6.7867,147.31,147.3,46.14]
[1751791158222,6.7867,147.31,147.3,241.22]
[1751791158427,6.7865,147.32,147.3,241.22]
[1751791159434,4.4966,147.36,147.3,241.22]
[1751791159630,20.6501326,147.35,147.3,241.22]
[1751791159931,20.21959365,147.34,147.3,248.0069]
[1751791160133,4.73909881,147.33,147.3,248.0069]
[1751791160331,6.7856,147.34,147.3,248.0069]
[1751791160532,4.73931652,147.33,147.3,248.0069]
[1751791160729,6.7856,147.34,147.3,248.0069]
[1751791160932,6.7856,147.34,147.31,6.7867]
[1751791161232,6.7856,147.34,147.32,195.14]
[1751791163936,6.7858,147.33,147.32,195.14]
[1751791166534,11.54566156,147.33,147.32,195.14]
[1751791170938,6.7869,147.31,147.29,46.14]
[1751791171139,6.7869,147.31,147.3,195.04]
[1751791174643,6.7869,147.31,147.29,46.14]
[1751791174843,6.7869,147.31,147.3,195.06]
[1751791175241,6.7865,147.32,147.3,195.06]
[1751791176444,8.26734004,147.36,147.3,195.06]
[1751791176645,13.44714238,147.35,147.3,195.06]
[1751791176945,11.53589444,147.34,147.3,201.8468]
[1751791177145,6.7856,147.34,147.3,201.8468]
[1751791177334,2.3763,147.37,147.31,3.68524004]
[1751791177539,13.44872782,147.36,147.32,6.786]
[1751791177740,4.75104261,147.35,147.33,195.12]
[1751791177941,2.3763,147.37,147.33,195.12]
[1751791178143,20.23352131,147.36,147.33,195.12]
[1751791178346,4.7510354,147.35,147.33,195.12]
[1751791178544,6.7848,147.36,147.33,195.12]
[1751791178737,4.75100704,147.35,147.33,195.12]
[1751791178941,2.3763,147.37,147.33,195.12]
[1751791179142,13.4493097,147.36,147.33,195.12]
[1751791179341,4.75100704,147.35,147.33,195.12]
[1751791179543,6.7847,147.36,147.33,195.12]
[1751791179746,4.75104685,147.35,147.33,195.12]
[1751791180044,6.7847,147.36,147.33,195.12]
[1751791180344,4.76225715,147.35,147.33,195.12]
[1751791180541,6.7847,147.36,147.33,195.12]
[1751791180743,13.47673827,147.35,147.33,195.12]
[1751791180950,6.7852,147.35,147.33,195.12]
[1751791181143,4.76254231,147.34,147.33,195.12]
[1751791181851,11.54784231,147.34,147.33,195.12]
[1751791182250,20.28095459,147.34,147.33,195.12]
[1751791187158,25.29900236,147.34,147.33,195.12]
[1751791187756,20.28095459,147.34,147.33,195.12]
[1751791190260,25.30131124,147.34,147.33,195.12]
[1751791190558,27.56426706,147.34,147.3,6.7871]
[1751791190752,20.28155459,147.33,147.31,195.02]
[1751791190954,13.51040504,147.32,147.31,195.02]
[1751791194058,4.76254231,147.32,147.31,201.8067]
[1751791195160,9.41295371,147.36,147.32,6.7859]
[1751791195349,13.77324586,147.35,147.32,6.7859]
[1751791195553,8.7503818,147.34,147.31,198.70524004]
[1751791195859,8.7503818,147.33,147.32,6.7863]
[1751791196160,6.7848,147.36,147.33,6.7854]
[1751791196361,8.75140606,147.35,147.34,195.06]
[1751791197159,8.75140606,147.35,147.34,201.8453]
[1751791198362,6.7844,147.36,147.34,195.06]
[1751791199059,13.09462954,147.39,147.34,195.06]
[1751791199261,16.04374639,147.38,147.34,195.06]
[1751791199460,13.78098722,147.37,147.34,195.06]
[1751791199660,8.74782563,147.36,147.34,195.06]
[1751791199964,8.74715152,147.35,147.34,195.06]
[1751791200260,15.53205152,147.35,147.32,6.786]
[1751791200465,8.77431713,147.34,147.33,195.0]
[1751791200763,6.7847,147.36,147.33,195.0]
[1751791200957,8.77453771,147.35,147.33,195.0]
[1751791201157,6.7847,147.36,147.33,195.0]
[1751791201363,15.55945932,147.35,147.33,195.0]
[1751791201553,6.7849,147.35,147.33,195.0]
[1751791205865,13.09462954,147.39,147.33,201.7857]
[1751791206066,13.83593364,147.38,147.33,195.0]
[1751791206268,13.83593364,147.37,147.33,195.0]
[1751791206566,15.56090214,147.36,147.33,195.0]
[1751791206762,6.7847,147.36,147.33,195.0]
[1751791206967,26.92815233,147.35,147.28,46.14]
[1751791207160,3.68167583,147.33,147.29,195.16]
[1751791207360,13.83352279,147.32,147.29,195.16]
[1751791207559,15.56175837,147.31,147.29,195.16]
[1751791207766,6.787,147.31,147.29,195.16]
[1751791208167,6.787,147.31,147.28,46.14]
[1751791208466,3.68167583,147.33,147.29,195.18]
[1751791208665,13.82847592,147.32,147.29,195.18]
[1751791208866,8.77125779,147.31,147.29,195.18]
[1751791209060,6.787,147.31,147.29,195.18]
[1751791210768,6.787,147.31,147.28,46.14]
[1751791210966,6.787,147.31,147.29,195.16]
[1751791211363,8.77317286,147.3,147.29,195.16]
[1751791213169,6.787,147.31,147.29,195.16]
[1751791214072,9.41295371,147.34,147.29,195.16]
[1751791214271,13.82587223,147.33,147.29,195.16]
[1751791214472,8.77144445,147.32,147.29,195.16]
[1751791214678,16.62295371,147.35,147.29,195.16]
[1751791214971,13.82578802,147.34,147.29,195.16]
[1751791215275,13.82578802,147.33,147.29,195.16]
[1751791215571,8.77135709,147.32,147.3,6.7871]
[1751791215762,6.786,147.33,147.3,6.7871]
[1751791215965,8.75281205,147.32,147.3,6.7871]
[1751791216168,6.786,147.33,147.3,6.7871]
[1751791216463,8.75281579,147.32,147.3,6.7871]
[1751791216669,6.786,147.33,147.3,6.7871]
[1751791216872,8.7527743,147.32,147.3,6.7871]
[1751791217078,4.74096825,147.31,147.3,6.7871]
[1751791218363,6.7855,147.34,147.31,6.7866]
[1751791218568,13.49060859,147.33,147.32,195.1]
[1751791220276,3.68167583,147.36,147.32,195.1]
[1751791220469,18.52821613,147.35,147.32,195.1]
[1751791220669,3.68167583,147.36,147.32,195.1]
[1751791220670,20.31629431,147.34,147.32,195.1]
[1751791220871,6.7855,147.34,147.32,195.1]
[1751791224081,4.78266205,147.33,147.32,195.1]
[1751791227374,9.41295371,147.38,147.32,195.1]
[1751791227576,20.92108133,147.37,147.33,49.82167583]
[1751791227875,13.58607837,147.36,147.34,6.7851]
[1751791228076,4.78341196,147.35,147.34,6.7851]
[1751791230583,4.80445131,147.35,147.33,56.60727583]
[1751791230770,6.7845,147.36,147.33,56.60727583]
[1751791230970,4.80445131,147.35,147.33,56.60727583]
[1751791231173,6.7845,147.36,147.33,56.60727583]
[1751791231370,20.08832954,147.41,147.34,6.7852]
[1751791231577,20.95616951,147.4,147.34,6.7852]
[1751791231776,6.7838,147.38,147.34,6.7852]
[1751791231979,13.623449,147.37,147.34,6.7852]
[1751791232279,6.7838,147.38,147.34,6.7852]
[1751791232480,11.58759791,147.37,147.34,6.7852]
[1751791232680,6.784,147.37,147.34,6.7852]
[1751791234183,6.784,147.37,147.33,56.60727583]
[1751791238687,6.7844,147.36,147.33,56.60727583]
[1751791241086,6.7842,147.37,147.34,6.7853]
[1751791241787,6.7842,147.37,147.34,9.14143345]
[1751791242389,6.7842,147.37,147.34,2.35613345]
[1751791244382,6.7845,147.36,147.34,2.35613345]
[1751791249695,6.7841,147.37,147.34,9.14133345]
[1751791251397,2.35613345,147.38,147.33,46.14]
[1751791251697,7.14414897,147.37,147.34,2.35613345]
[1751791251899,6.7848,147.36,147.33,55.28183345]
[1751791252995,6.7848,147.36,147.34,2.35613345]
[1751791254512,6.7853,147.34,147.33,46.14]
[1751791254701,6.7853,147.34,147.33,240.94]
[1751791255607,9.14113345,147.35,147.33,240.94]
[1751791255807,6.785,147.35,147.33,240.94]
[1751791259808,6.785,147.35,147.34,194.9]
[1751791260110,13.8904515,147.35,147.34,194.9]
[1751791261104,7.1054515,147.35,147.34,194.9]
[1751791261512,4.74931805,147.35,147.34,194.9]
[1751791262505,4.74931805,147.35,147.34,197.25613345]
[1751791262708,2.35613345,147.39,147.34,197.25613345]
[1751791263006,18.55852672,147.38,147.36,2.35613345]
[1751791263206,2.35613345,147.4,147.37,194.9]
[1751791263405,18.56582488,147.39,147.37,194.9]
[1751791263614,18.56582488,147.38,147.37,194.9]
[1751791265312,18.58014654,147.38,147.37,194.9]
[1751791266911,25.36364654,147.38,147.37,194.9]
[1751791268714,27.71977999,147.38,147.37,194.9]
[1751791269510,29.96868624,147.38,147.37,194.9]
[1751791274213,22.6692781,147.38,147.37,194.9]
[1751791274419,32.65698962,147.38,147.34,194.84]
[1751791274714,2.35613345,147.36,147.34,194.84]
[1751791274909,18.62192395,147.35,147.34,194.84]
[1751791275713,18.62192395,147.35,147.34,194.86]
[1751791276711,13.52964465,147.35,147.34,194.86]
[1751791277415,13.54348576,147.35,147.34,201.6453]
[1751791277809,13.54356284,147.35,147.34,201.6453]
[1751791279615,4.78063521,147.35,147.34,204.00143345]
[1751791279916,6.7837,147.38,147.35,6.7847]
[1751791280105,13.56127935,147.37,147.35,9.14083345]
[1751791280304,4.76640983,147.36,147.35,9.14083345]
[1751791280510,13.56074715,147.36,147.35,2.35613345]
[1751791281015,13.56074715,147.36,147.34,204.00123345]
[1751791281209,6.784,147.37,147.34,204.00123345]
[1751791281410,13.56319175,147.36,147.34,204.00123345]
[1751791281706,6.784,147.37,147.34,204.00123345]
[1751791281904,13.56319175,147.36,147.34,204.00123345]
[1751791282209,6.784,147.37,147.34,204.00123345]
[1751791282408,13.5637234,147.36,147.34,204.00123345]
[1751791282608,6.784,147.37,147.34,204.00123345]
[1751791282809,13.56469657,147.36,147.34,204.00123345]
[1751791283010,6.784,147.37,147.34,204.00123345]
[1751791283217,13.56561705,147.36,147.34,204.00123345]
[1751791283413,6.784,147.37,147.34,204.00123345]
[1751791283613,13.56556884,147.36,147.34,204.00123345]
[1751791283812,6.784,147.37,147.34,204.00123345]
[1751791284009,13.56556884,147.36,147.34,204.00123345]
[1751791284216,6.784,147.37,147.34,204.00123345]
[1751791284418,13.56574924,147.36,147.34,204.00123345]
[1751791284615,6.784,147.37,147.34,204.00123345]
[1751791284820,13.56574924,147.36,147.34,204.00123345]
[1751791285019,6.784,147.37,147.34,204.00123345]
[1751791285219,13.56596789,147.36,147.35,6.7849]
[1751791287321,13.56596789,147.36,147.35,9.14103345]
[1751791287921,4.76733386,147.36,147.35,9.14103345]
[1751791289721,6.7832,147.39,147.37,6.7839]
[1751791289923,13.57934652,147.38,147.37,9.14003345]
[1751791290121,13.57934652,147.38,147.37,203.94003345]
[1751791290520,4.77919143,147.38,147.37,197.15613345]
[1751791290724,13.58803748,147.38,147.37,197.15613345]
[1751791292429,13.58803748,147.38,147.37,194.8]
[1751791295228,13.59922521,147.38,147.37,194.8]
[1751791295428,13.59922521,147.38,147.37,201.5839]
[1751791295730,13.6094517,147.38,147.37,201.5839]
[1751791296121,4.79037916,147.38,147.37,201.5839]
[1751791296529,4.79037916,147.38,147.37,203.94003345]
[1751791296830,4.79037916,147.38,147.37,197.15613345]
[1751791301542,4.79037916,147.38,147.37,194.8]
[1751791301844,4.79037916,147.38,147.37,197.15613345]
[1751791305439,20.39036269,147.38,147.37,194.8]
[1751791310751,25.48516228,147.38,147.37,194.8]
[1751791311446,20.39036269,147.38,147.37,194.8]
[1751791311744,13.60686269,147.38,147.37,197.15613345]
[1751791311951,9.44610513,147.42,147.37,197.15613345]
[1751791312143,22.94070166,147.41,147.39,2.35613345]
[1751791312339,13.90590096,147.4,147.39,2.35613345]
[1751791313245,8.81053325,147.4,147.39,2.35613345]
[1751791313444,13.90554643,147.4,147.39,2.35613345]
[1751791314550,13.90554643,147.4,147.37,201.5836]
[1751791314754,8.81053325,147.39,147.38,2.35613345]
[1751791316450,11.1666667,147.39,147.35,46.08]
[1751791316654,16.26572138,147.38,147.36,194.76]
[1751791316953,20.6936972,147.37,147.36,194.76]
[1751791317350,13.9092972,147.37,147.35,46.08]
[1751791317555,8.81590329,147.36,147.35,46.08]
[1751791317857,15.60030329,147.36,147.35,240.84]
[1751791318048,2.35613345,147.39,147.35,48.43613345]
[1751791318255,13.91058674,147.38,147.36,194.76]
[1751791318450,13.91077617,147.37,147.36,194.76]
[1751791319260,20.69477617,147.37,147.36,194.76]
[1751791319458,8.81705355,147.37,147.36,194.76]
[1751791320757,18.55653858,147.41,147.36,203.90053345]
[1751791320959,8.81001103,147.4,147.37,2.35613345]
[1751791321156,8.81001103,147.39,147.37,2.35613345]
[1751791321359,8.81001103,147.38,147.37,2.35613345]
[1751791321761,8.81001103,147.38,147.36,201.5444]
[1751791321950,6.7832,147.39,147.36,201.5444]
[1751791322155,8.8107494,147.38,147.36,201.5444]
[1751791322351,6.7832,147.39,147.36,201.5444]
[1751791322551,8.81213968,147.38,147.36,201.5444]
[1751791322757,6.7832,147.39,147.36,201.5444]
[1751791322956,8.81147101,147.38,147.36,201.5444]
[1751791323152,6.7832,147.39,147.36,201.5444]
[1751791323357,8.81162752,147.38,147.36,201.5444]
[1751791323555,6.7832,147.39,147.36,201.5444]
[1751791323755,8.81178735,147.38,147.36,201.5444]
[1751791323957,6.7832,147.39,147.36,201.5444]
[1751791324262,8.81218635,147.38,147.36,201.5444]
[1751791324463,6.7832,147.39,147.36,201.5444]
[1751791324661,8.81330713,147.38,147.36,201.5444]
[1751791324964,6.7832,147.39,147.36,201.5444]
[1751791325264,8.81517819,147.38,147.36,194.76]
[1751791325460,8.81517819,147.37,147.36,194.76]
[1751791327566,15.59907819,147.37,147.36,194.76]
[1751791327861,8.81517819,147.37,147.36,194.76]
[1751791328267,16.20040513,147.41,147.36,198.44004856]
[1751791328565,8.81496094,147.4,147.36,198.44004856]
[1751791328765,8.81496094,147.39,147.36,198.44004856]
[1751791328964,8.81496094,147.38,147.36,198.44004856]
[1751791329160,16.20040513,147.41,147.36,198.44004856]
[1751791329367,6.7833,147.39,147.36,205.22444856]
[1751791329664,8.81502113,147.38,147.36,198.44004856]
[1751791329865,13.54467435,147.37,147.36,194.76]
[1751791331270,13.54467435,147.37,147.36,201.5444]
[1751791331468,4.72965322,147.37,147.36,201.5444]
[1751791333064,9.44610513,147.42,147.38,6.7834]
[1751791333368,16.18937678,147.41,147.39,194.76]
[1751791333565,13.93039459,147.4,147.39,194.76]
[1751791334664,20.71299459,147.4,147.39,194.76]
[1751791336573,13.93039459,147.4,147.39,194.76]
[1751791337875,8.83075716,147.4,147.39,194.76]
[1751791340576,20.74423557,147.4,147.39,194.76]
[1751791343086,20.74423557,147.4,147.37,6.7838]
[1751791343385,20.74423557,147.4,147.38,194.72]
[1751791343386,8.83075716,147.39,147.38,194.72]
[1751791343785,8.83075716,147.39,147.38,197.0750423]
[1751791344288,13.96225498,147.39,147.38,197.0750423]
[1751791344987,18.67021523,147.39,147.38,197.0750423]
[1751791346588,13.53871741,147.39,147.38,197.0750423]
[1751791352894,20.32171741,147.39,147.38,197.0750423]
[1751791353392,13.53871741,147.39,147.38,197.0750423]
[1751791353896,18.67036429,147.39,147.38,197.0750423]
[1751791354093,13.53871741,147.39,147.38,197.0750423]
[1751791354894,9.44610513,147.43,147.38,197.0750423]
[1751791355095,18.68653671,147.42,147.4,2.3550423]
[1751791355391,13.55434518,147.41,147.37,46.06]
[1751791355693,6.7819,147.42,147.39,6.7827]
[1751791355991,13.5529662,147.41,147.39,6.7827]
[1751791356193,6.7819,147.42,147.4,6.7826]
[1751791356384,6.7819,147.42,147.41,197.0750423]
[1751791356592,13.55140351,147.42,147.41,197.0750423]
[1751791358089,13.55140351,147.42,147.41,203.8571423]
[1751791359992,4.70720806,147.42,147.41,203.8571423]
[1751791361397,9.44610513,147.46,147.43,6.781]
[1751791361594,13.80904908,147.45,147.44,2.3550423]
[1751791361795,13.80904908,147.45,147.44,197.0350423]
[1751791362605,8.8284553,147.45,147.44,197.0350423]
[1751791363397,8.8284553,147.45,147.44,203.8157423]
[1751791363791,6.779,147.48,147.44,203.8157423]
[1751791363999,13.83196491,147.47,147.46,2.3550423]
[1751791364794,8.8532137,147.47,147.46,2.3550423]
[1751791365599,8.8532137,147.47,147.46,9.1348423]
[1751791365802,6.7786,147.49,147.46,6.7798]
[1751791366002,8.84806754,147.48,147.47,49.71496463]
[1751791366300,9.44610513,147.52,147.47,49.71496463]
[1751791366500,16.13998261,147.51,147.48,194.66]
[1751791366799,20.65620485,147.5,147.48,194.66]
[1751791367000,8.87917068,147.49,147.48,194.66]
[1751791368295,6.7783,147.5,147.48,194.66]
[1751791368802,6.7784,147.49,147.48,194.66]
[1751791371598,15.66457844,147.49,147.48,194.66]
[1751791373403,20.40575725,147.49,147.48,194.66]
[1751791375304,6.7789,147.48,147.47,46.04]
[1751791375500,20.40625725,147.48,147.47,240.64]
[1751791375802,20.40625725,147.48,147.47,194.6]
[1751791380106,20.40625725,147.48,147.47,194.6]
[1751791381306,6.7795,147.47,147.44,6.7806]
[1751791381507,6.7795,147.47,147.45,194.6]
[1751791381904,6.7799,147.46,147.44,46.04]
[1751791382201,3.67496463,147.47,147.44,240.64]
[1751791382906,6.7801,147.46,147.44,240.64]
[1751791383707,6.7803,147.45,147.44,240.66]
[1751791391419,15.64552929,147.45,147.44,240.66]
[1751791392118,20.32167565,147.45,147.44,240.66]
[1751791392321,20.32167565,147.45,147.44,46.04]
[1751791392513,20.32167565,147.45,147.44,240.66]
[1751791394821,20.32167565,147.45,147.44,46.04]
[1751791395016,20.32167565,147.45,147.44,240.66]
[1751791398621,25.31874211,147.45,147.44,240.66]
[1751791398817,20.32167565,147.45,147.44,240.66]
[1751791399021,25.32371319,147.45,147.44,240.66]
[1751791400622,6.7819,147.42,147.4,46.04]
[1751791400922,8.87492968,147.41,147.4,46.04]
[1751791401118,20.34285467,147.41,147.4,46.04]
[1751791401317,15.91433769,147.41,147.4,194.62]
[1751791401618,27.69847292,147.41,147.4,194.62]
[1751791402323,6.783,147.4,147.36,55.17788302]
[1751791402623,6.783,147.4,147.37,196.97358302]
[1751791403724,6.783,147.4,147.37,194.62]
[1751791404021,6.783,147.4,147.36,52.8243]
[1751791404228,6.783,147.4,147.37,194.62]
[1751791404526,6.783,147.4,147.36,52.8243]
[1751791404826,6.783,147.4,147.37,194.62]
[1751791408026,6.783,147.4,147.37,201.4039]
[1751791412429,6.7823,147.41,147.37,201.4039]
[1751791412730,3.68013959,147.43,147.37,201.4039]
[1751791412926,13.43237438,147.42,147.37,201.4039]
[1751791413129,6.7828,147.4,147.37,201.4039]
[1751791413526,6.7828,147.4,147.37,205.08403959]
[1751791417422,6.7828,147.4,147.38,194.68]
[1751791423734,6.7828,147.4,147.38,197.03488759]
[1751791423934,2.35488759,147.42,147.38,203.81828759]
[1751791424137,13.47859745,147.41,147.38,203.81828759]
[1751791424437,8.82256484,147.4,147.38,203.81828759]
[1751791424630,6.7825,147.41,147.38,203.81828759]
[1751791424828,8.82349102,147.4,147.38,203.81828759]
[1751791425036,6.7825,147.41,147.38,203.81828759]
[1751791425337,8.82416029,147.4,147.38,203.81828759]
[1751791425538,6.7826,147.4,147.38,197.03488759]
[1751791436159,6.783,147.39,147.38,194.68]
[1751791436348,2.35488759,147.41,147.38,194.68]
[1751791436651,13.50557155,147.4,147.38,194.68]